[Event "Irish International Open 2019"]
[Site "Dublin"]
[Date "2019.04.18"]
[Round "2.20"]
[White "Han, Yichen"]
[Black "Putar, Leon"]
[Result "1-0"]
[ECO "B18"]
[WhiteElo "2190"]
[BlackElo "1549"]
[Annotator "NA"]
[PlyCount "85"]
[EventDate "2019.02.28"]
[EventType "swiss"]
[EventCountry "IRL"]
[SourceTitle "playchess.com"]
[Source "ChessBase"]
[SourceQuality "1"]
[TimeControl "5400+30"]

1. e4 {[%emt 0:00:00]} c6 {[%emt 0:00:00]} 2. d4 {[%emt 0:00:00]} d5 {[%emt 0:00:30]} 3. Nc3 {[%emt 0:00:00]} dxe4 {[%emt 0:00:45]} 4. Nxe4 {[%emt 0:00:00]} Bf5 {[%emt 0:00:34]} 5. Ng3 {[%emt 0:00:27]} Bg6 {[%emt 0:00:33]} 6. N1e2 {[%emt 0:00:40]} Nf6 {[%emt 0:01:45]} 7. Nf4 {[%emt 0:00:59]} e6 {[%emt 0:01:26]} 8. h4 {[%emt 0:00:41] B18: Classical Caro-Kann: 4...Bf5 sidelines} Bd6 {[%emt 0:12:06]} (8... e5 9. Nxg6 hxg6 10. dxe5 Qa5+ 11. Bd2 Qxe5+ 12. Qe2 Nbd7 13. O-O-O O-O-O 14. Qc4 Nd5 15. Re1 Qc7 {½-½ (65) Andriasian,Z (2604)-Paichadze,L (2583) chess.com INT 2019}) 9. h5 {[%emt 0:06:03]} Be4 {[%emt 0:05:12]} 10. Nxe4 {[%emt 0:02:45]} Nxe4 {[%emt 0:00:12]} 11. Bd3 {[%emt 0:01:11]} (11. h6 $14) 11... Qa5+ $146 {[%emt 0:00:25]} ({Predecessor:} 11... Nf6 12. Qf3 Nbd7 13. Bd2 Qc7 14. h6 g6 15. O-O-O O-O-O {1-0 (52) Bozanic,I (2251)-Brkic,I (2080) Split 2012}) 12. Kf1 {[%emt 0:02:01]} Nf6 {[%emt 0:00:33]} 13. Qe2 {[%emt 0:05:23]} Qc7 {[%emt 0:03:17]} (13... O-O $11) 14. g3 {[%emt 0:01:12]} Nd5 {[%emt 0:03:56]} (14... h6 $11) 15. Nxd5 {[%emt 0:04:51]} cxd5 {[%emt 0:02:19]} 16. Qg4 {[%emt 0:00:27]} f5 {[%emt 0:02:29]} 17. Qe2 {[%emt 0:02:19]} Qe7 {[%emt 0:02:51]} 18. Kg2 {[%emt 0:03:24]} Nc6 {[%emt 0:01:21]} 19. c3 {[%emt 0:00:13]} Kd7 {[%emt 0:01:22]} 20. Be3 {[%emt 0:03:36]} Rae8 $16 {[%emt 0:03:41]} 21. c4 {[%emt 0:03:02]} Rhf8 {[%emt 0:02:03]} 22. f4 {[%emt 0:06:09]} dxc4 {[%emt 0:08:31]} 23. Bxc4 {[%emt 0:03:17]} a6 {[%emt 0:04:39]} 24. Qf3 {[%emt 0:03:06]} Rb8 {[%emt 0:02:22]} 25. d5 {[%emt 0:04:48]} exd5 {[%emt 0:00:18]} 26. Bxd5 {[%emt 0:00:18]} Nb4 {[%emt 0:39:50]} 27. Bb3 {[%emt 0:03:50]} Rfe8 {[%emt 0:00:00]} 28. Bf2 {[%emt 0:01:49]} Qe4 {[%emt 0:00:00]} 29. Rad1 {[%emt 0:01:40]} Rbc8 {[%emt 0:00:00]} 30. Rd4 {[%emt 0:02:09]} Qxf3+ {[%emt 0:00:00]} 31. Kxf3 {[%emt 0:00:06]} Rc6 {[%emt 0:00:00]} 32. Rhd1 {[%emt 0:00:47]} Kc7 {[%emt 0:00:00]} 33. a3 {[%emt 0:00:36]} Nc2 {[%emt 0:00:00]} 34. Bxc2 {[%emt 0:00:07]} Rxc2 {[%emt 0:00:00]} 35. Rxd6 {[%emt 0:00:08]} Rxb2 {[%emt 0:00:00]} 36. Rd7+ {[%emt 0:00:21]} Kc8 {[%emt 0:00:00]} 37. Rxg7 {[%emt 0:01:35]} Rb3+ {[%emt 0:00:00]} 38. Kg2 {[%emt 0:00:04]} Rxa3 {[%emt 0:00:00]} 39. Rxh7 {[%emt 0:02:18]} b5 {[%emt 0:00:00]} 40. h6 {[%emt 0:01:11]} b4 {[%emt 0:00:00]} 41. Ra7 {[%emt 0:00:29]} Kb8 {[%emt 0:00:00]} 42. h7 {[%emt 0:00:47]} b3 {[%emt 0:00:00]} 43. Rg7 {[%emt 0:00:32]} 1-0

[Event "Irish International Open 2019"]
[Site "Dublin"]
[Date "2019.04.18"]
[Round "2.23"]
[White "Moran, Stephen"]
[Black "Carolan, James"]
[Result "1-0"]
[ECO "A45"]
[WhiteElo "2165"]
[BlackElo "1268"]
[Annotator "NA"]
[PlyCount "137"]
[EventDate "2019.02.28"]
[EventType "swiss"]
[EventCountry "IRL"]
[SourceTitle "playchess.com"]
[Source "ChessBase"]
[SourceQuality "1"]
[TimeControl "5400+30"]

1. d4 {[%emt 0:00:00]} Nf6 {[%emt 0:04:07]} 2. Bg5 {[%emt 0:00:00]} d5 {[%emt 0:00:40]} 3. Bxf6 {[%emt 0:00:05]} exf6 {[%emt 0:01:41]} 4. e3 {[%emt 0:00:24]} g6 {[%emt 0:09:44]} 5. g3 {[%emt 0:00:08]} Bg7 {[%emt 0:00:31]} 6. Bg2 {[%emt 0:00:06]} O-O {[%emt 0:00:52]} 7. Ne2 {[%emt 0:00:05]} Qe7 {[%emt 0:06:50]} 8. O-O {[%emt 0:01:45]} Be6 {[%emt 0:05:19]} 9. Nd2 {[%emt 0:00:45]} Nd7 {[%emt 0:01:00]} 10. b3 {[%emt 0:01:59]} f5 {[%emt 0:10:56]} 11. c4 {[%emt 0:02:37]} c6 {[%emt 0:01:03]} 12. Rc1 {[%emt 0:06:34]} Nf6 {[%emt 0:06:59]} 13. Qc2 {[%emt 0:05:53]} a5 {[%emt 0:04:27]} 14. Nc3 {[%emt 0:02:42]} Rfc8 {[%emt 0:04:04]} 15. Na4 {[%emt 0:01:29]} Nd7 {[%emt 0:01:24]} 16. c5 {[%emt 0:03:06]} b5 {[%emt 0:06:40]} 17. cxb6 {[%emt 0:00:44]} Rab8 {[%emt 0:01:16]} 18. Nb1 {[%emt 0:01:52]} Nxb6 {[%emt 0:02:18]} 19. Nxb6 {[%emt 0:00:21]} Rxb6 {[%emt 0:00:08]} 20. Nc3 {[%emt 0:02:13]} Rbb8 {[%emt 0:03:35]} 21. Na4 {[%emt 0:00:31]} Bd7 {[%emt 0:05:07]} 22. Nc5 {[%emt 0:13:01]} Be8 {[%emt 0:00:32]} 23. Qd2 {[%emt 0:00:36]} Qa7 {[%emt 0:00:39]} 24. Rc2 {[%emt 0:01:12]} Qb6 {[%emt 0:02:10]} 25. Rfc1 {[%emt 0:00:26]} Bf8 {[%emt 0:04:26]} 26. Bf1 {[%emt 0:04:38]} Bxc5 {[%emt 0:04:30]} 27. Rxc5 {[%emt 0:00:07]} Bd7 {[%emt 0:01:00]} 28. Qxa5 {[%emt 0:02:19]} Qxa5 {[%emt 0:01:09]} 29. Rxa5 {[%emt 0:00:06]} Ra8 {[%emt 0:00:54]} 30. Rcc5 {[%emt 0:01:08]} Rxa5 {[%emt 0:00:52]} 31. Rxa5 {[%emt 0:00:05]} Rb8 {[%emt 0:00:14]} 32. Bd3 {[%emt 0:03:00]} Kf8 {[%emt 0:00:53]} 33. Kf1 {[%emt 0:00:18]} Ke7 {[%emt 0:00:47]} 34. Ke2 {[%emt 0:00:06]} h5 {[%emt 0:02:03]} 35. h4 {[%emt 0:00:13]} f6 {[%emt 0:03:52]} 36. Ra7 {[%emt 0:06:19]} Kd6 {[%emt 0:00:33]} 37. Kd2 {[%emt 0:02:09]} g5 {[%emt 0:01:05]} 38. Be2 {[%emt 0:00:14]} gxh4 {[%emt 0:01:56]} 39. gxh4 {[%emt 0:00:05]} Ke6 {[%emt 0:01:09]} 40. Bxh5 {[%emt 0:00:52]} Rh8 {[%emt 0:00:13]} 41. Bg6 {[%emt 0:00:41]} Rxh4 {[%emt 0:00:39]} 42. Bxf5+ {[%emt 0:00:24]} Kxf5 {[%emt 0:00:03]} 43. Rxd7 {[%emt 0:00:09]} Ke6 {[%emt 0:00:24]} 44. Rd8 {[%emt 0:00:37]} Rh2 {[%emt 0:00:13]} 45. Ke2 {[%emt 0:00:05]} Rh1 {[%emt 0:00:29]} 46. Ra8 Rb1 {[%emt 0:00:32]} 47. Kf3 {[%emt 0:01:37]} Rb2 {[%emt 0:00:13]} 48. Kg3 {[%emt 0:00:28]} f5 {[%emt 0:00:28]} 49. f3 {[%emt 0:00:42]} Ke7 {[%emt 0:01:21]} 50. Kf4 {[%emt 0:00:23]} Re2 {[%emt 0:01:03]} 51. b4 {[%emt 0:00:29]} Rb2 {[%emt 0:00:45]} 52. Ke5 {[%emt 0:03:26]} Rf2 {[%emt 0:01:15]} 53. Ra7+ {[%emt 0:00:10]} Kd8 {[%emt 0:00:24]} 54. Kxf5 {[%emt 0:07:12]} Rxf3+ {[%emt 0:00:04]} 55. Ke5 {[%emt 0:00:12]} Rxe3+ {[%emt 0:00:05]} 56. Kd6 {[%emt 0:00:06]} Kc8 {[%emt 0:00:54]} 57. Kxc6 {[%emt 0:00:17]} Kb8 {[%emt 0:01:20]} 58. Ra5 {[%emt 0:00:29]} Rh3 {[%emt 0:00:35]} 59. Kxd5 {[%emt 0:00:49]} Rh6 {[%emt 0:00:32]} 60. Kc5 {[%emt 0:00:37]} Kb7 {[%emt 0:00:20]} 61. Kc4 {[%emt 0:02:16]} Rh4 {[%emt 0:00:33]} 62. a4 {[%emt 0:00:11]} Rh6 {[%emt 0:00:12]} 63. Rg5 {[%emt 0:00:13]} Rc6+ {[%emt 0:00:43]} 64. Rc5 {[%emt 0:00:10]} Rg6 {[%emt 0:00:09]} 65. a5 {[%emt 0:00:07]} Rg4 {[%emt 0:00:30]} 66. Rh5 {[%emt 0:00:12]} Rg6 {[%emt 0:00:56]} 67. Rh7+ {[%emt 0:00:10]} Ka6 {[%emt 0:00:29]} 68. b5+ {[%emt 0:00:54]} Kxa5 {[%emt 0:00:06]} 69. Ra7+ {[%emt 0:00:05]} 1-0

[Event "Irish International Open 2019"]
[Site "Dublin"]
[Date "2019.04.18"]
[Round "2.24"]
[White "Li, Henry"]
[Black "Horvath, Gabor"]
[Result "1/2-1/2"]
[ECO "C18"]
[WhiteElo "2308"]
[BlackElo "2252"]
[Annotator "NA"]
[PlyCount "115"]
[EventDate "2019.02.28"]
[EventType "swiss"]
[EventCountry "IRL"]
[SourceTitle "playchess.com"]
[Source "ChessBase"]
[SourceQuality "1"]
[TimeControl "5400+30"]

1. e4 {[%emt 0:00:00]} e6 {[%emt 0:00:00]} 2. d4 {[%emt 0:00:00]} d5 {[%emt 0:00:00]} 3. Nc3 {[%emt 0:00:00]} Bb4 {[%emt 0:00:06]} 4. e5 {[%emt 0:00:00]} c5 {[%emt 0:00:06]} 5. a3 {[%emt 0:00:01]} Bxc3+ {[%emt 0:00:05]} 6. bxc3 {[%emt 0:00:04]} Ne7 {[%emt 0:00:07]} 7. Qg4 {[%emt 0:00:14]} cxd4 {[%emt 0:00:18]} 8. Bd3 {[%emt 0:00:14]} Qa5 {[%emt 0:00:34]} 9. Ne2 {[%emt 0:00:39]} O-O {[%emt 0:00:20]} 10. O-O {[%emt 0:05:24]} dxc3 {[%emt 0:01:40]} 11. Bg5 {[%emt 0:03:49]} Ng6 {[%emt 0:03:53]} 12. f4 {[%emt 0:08:27]} Nd7 {[%emt 0:04:15]} 13. Rf3 {[%emt 0:07:38]} f5 {[%emt 0:32:31]} 14. Qh5 {[%emt 0:00:53]} Rf7 {[%emt 0:02:52]} 15. Kh1 {[%emt 0:08:14]} Nc5 {[%emt 0:04:54]} 16. g4 {[%emt 0:08:23]} Nxd3 {[%emt 0:06:14]} 17. Rxd3 {[%emt 0:00:15]} fxg4 {[%emt 0:03:19]} 18. Qxg4 {[%emt 0:00:52]} Bd7 {[%emt 0:03:46]} 19. Qh5 {[%emt 0:03:02]} Qa4 {[%emt 0:15:29]} 20. Nd4 {[%emt 0:13:56]} Rxf4 {[%emt 0:03:32]} 21. Bxf4 {[%emt 0:00:45]} Nxf4 {[%emt 0:00:11]} 22. Qf3 {[%emt 0:00:37]} Nxd3 {[%emt 0:00:24]} 23. Qxd3 {[%emt 0:00:06]} Rf8 {[%emt 0:02:06]} 24. Rg1 {[%emt 0:01:56]} Qc4 {[%emt 0:02:27]} 25. Qg3 {[%emt 0:01:27]} Rf7 {[%emt 0:02:10]} 26. Qh4 {[%emt 0:01:01]} Qc8 {[%emt 0:01:20]} 27. Rg4 {[%emt 0:04:08]} Qf8 {[%emt 0:01:17]} 28. Kg2 {[%emt 0:00:42]} Qxa3 {[%emt 0:01:43]} 29. Nf3 {[%emt 0:00:44]} Qe7 {[%emt 0:05:17]} 30. Ng5 {[%emt 0:01:07]} h6 {[%emt 0:00:39]} 31. Nxf7 {[%emt 0:00:12]} Qxh4 {[%emt 0:00:05]} 32. Rxh4 {[%emt 0:00:08]} Kxf7 {[%emt 0:00:05]} 33. Rh3 {[%emt 0:11:04]} Bc6 {[%emt 0:01:04]} 34. Kf2 {[%emt 0:00:35]} d4 {[%emt 0:03:00]} 35. Rd3 {[%emt 0:02:30]} Be4 {[%emt 0:00:13]} 36. Rxd4 {[%emt 0:00:06]} Bxc2 {[%emt 0:00:06]} 37. Rc4 {[%emt 0:06:04]} Bb3 {[%emt 0:00:22]} 38. Rxc3 {[%emt 0:00:35]} Bd5 {[%emt 0:00:04]} 39. Ke3 {[%emt 0:00:33]} Bc6 {[%emt 0:01:10]} 40. Ra3 {[%emt 0:01:12]} a6 {[%emt 0:00:06]} 41. Kd4 {[%emt 0:00:15]} g5 {[%emt 0:00:23]} 42. Ra1 {[%emt 0:00:50]} g4 {[%emt 0:00:38]} 43. Ke3 {[%emt 0:02:23]} Ke7 {[%emt 0:01:04]} 44. Kf4 {[%emt 0:00:32]} Bf3 {[%emt 0:00:14]} 45. h3 {[%emt 0:00:36]} h5 {[%emt 0:00:14]} 46. Ra3 {[%emt 0:03:53]} Bc6 {[%emt 0:00:34]} 47. h4 {[%emt 0:00:40]} Kf7 {[%emt 0:01:42]} 48. Kg5 {[%emt 0:00:27]} a5 {[%emt 0:00:11]} 49. Rxa5 {[%emt 0:01:38]} g3 50. Ra1 {[%emt 0:01:34]} g2 {[%emt 0:00:50]} 51. Kxh5 {[%emt 0:01:13]} Bb5 {[%emt 0:00:53]} 52. Rb1 {[%emt 0:01:43]} Kg8 {[%emt 0:00:46]} 53. Rc1 {[%emt 0:02:03]} Bf1 {[%emt 0:00:35]} 54. Rc8+ {[%emt 0:00:32]} Kg7 {[%emt 0:00:00]} 55. Rc7+ {[%emt 0:00:25]} Kf8 {[%emt 0:00:31]} 56. Rc8+ {[%emt 0:00:08]} Kf7 {[%emt 0:00:30]} 57. Rc7+ {[%emt 0:00:04]} Kf8 {[%emt 0:00:50]} 58. Rc8+ {[%emt 0:00:14]} 1/2-1/2

[Event "Irish International Open 2019"]
[Site "Dublin"]
[Date "2019.04.18"]
[Round "2.25"]
[White "Longson, Sarah N"]
[Black "Halvorsen, Benjamin"]
[Result "1-0"]
[ECO "B01"]
[WhiteElo "2123"]
[BlackElo "1767"]
[Annotator "NA"]
[PlyCount "87"]
[EventDate "2019.02.28"]
[EventType "swiss"]
[EventCountry "IRL"]
[SourceTitle "playchess.com"]
[Source "ChessBase"]
[SourceQuality "1"]
[TimeControl "5400+30"]

1. e4 {[%emt 0:00:00]} d5 {[%emt 0:00:00]} 2. exd5 {[%emt 0:00:00]} Qxd5 {[%emt 0:00:00]} 3. Nc3 {[%emt 0:00:00]} Qa5 {[%emt 0:00:03]} 4. d4 {[%emt 0:00:00]} Nf6 {[%emt 0:00:05]} 5. Bc4 {[%emt 0:00:22]} c6 {[%emt 0:00:28]} 6. Bd2 {[%emt 0:00:16]} Bg4 {[%emt 0:00:54]} 7. f3 {[%emt 0:01:53]} Bh5 {[%emt 0:01:27]} 8. Nd5 {[%emt 0:01:51]} Qd8 {[%emt 0:00:10]} 9. Nxf6+ {[%emt 0:00:18]} gxf6 {[%emt 0:00:09]} 10. Ne2 {[%emt 0:00:30]} e6 {[%emt 0:01:11]} 11. c3 {[%emt 0:01:03]} Bd6 {[%emt 0:02:18]} 12. Nf4 {[%emt 0:03:04]} Bg6 {[%emt 0:00:17]} 13. Qe2 {[%emt 0:10:36]} Nd7 {[%emt 0:13:19]} 14. d5 {[%emt 0:04:48]} cxd5 {[%emt 0:19:14]} 15. Nxd5 {[%emt 0:01:58]} a6 {[%emt 0:04:34]} 16. Bf4 {[%emt 0:29:59]} Ne5 {[%emt 0:04:46]} 17. Bxe5 {[%emt 0:00:34]} Bxe5 {[%emt 0:02:27]} 18. Ne3 {[%emt 0:06:19]} Qc7 {[%emt 0:04:33]} 19. Rd1 {[%emt 0:06:28]} Bxh2 {[%emt 0:07:52]} 20. Ng4 {[%emt 0:01:48]} Bg3+ {[%emt 0:04:46]} 21. Kf1 {[%emt 0:00:15]} Qe7 {[%emt 0:01:33]} 22. Rh3 {[%emt 0:09:00]} Bc7 {[%emt 0:01:39]} 23. Bb5+ {[%emt 0:04:51]} axb5 {[%emt 0:05:28]} 24. Qxb5+ {[%emt 0:00:02]} Kf8 {[%emt 0:00:10]} 25. Rd7 {[%emt 0:00:08]} Ra5 {[%emt 0:02:00]} 26. Rxe7 {[%emt 0:01:45]} Rxb5 {[%emt 0:00:07]} 27. Rxc7 {[%emt 0:00:08]} Bf5 {[%emt 0:01:48]} 28. Rg3 {[%emt 0:01:02]} Bd3+ {[%emt 0:09:16]} 29. Kg1 {[%emt 0:03:07]} Rxb2 {[%emt 0:02:34]} 30. Nxf6 {[%emt 0:01:09]} Bg6 {[%emt 0:00:10]} 31. Rc8+ {[%emt 0:01:12]} Kg7 {[%emt 0:00:04]} 32. Nh5+ {[%emt 0:00:16]} Kh6 {[%emt 0:00:12]} 33. Rxh8 {[%emt 0:00:17]} Kxh5 {[%emt 0:00:37]} 34. Ra8 {[%emt 0:02:14]} Rc2 {[%emt 0:04:55]} 35. Ra5+ {[%emt 0:02:09]} Kh6 {[%emt 0:00:12]} 36. f4 {[%emt 0:00:30]} Kg7 {[%emt 0:02:16]} 37. a4 {[%emt 0:03:56]} Ra2 {[%emt 0:00:48]} 38. c4 {[%emt 0:01:18]} Kf6 {[%emt 0:01:19]} 39. Re3 {[%emt 0:01:48]} Ke7 {[%emt 0:02:02]} 40. f5 {[%emt 0:00:32]} Bxf5 {[%emt 0:01:23]} 41. Rxf5 {[%emt 0:00:09]} Rxa4 {[%emt 0:00:02]} 42. Rb5 {[%emt 0:00:29]} Rxc4 {[%emt 0:00:16]} 43. Rxb7+ {[%emt 0:00:04]} Kd6 {[%emt 0:00:08]} 44. Rxf7 {[%emt 0:00:07]} 1-0

[Event "Irish International Open 2019"]
[Site "Dublin"]
[Date "2019.04.18"]
[Round "2.26"]
[White "Scallan, Fiachra"]
[Black "Putar, Lara"]
[Result "0-1"]
[ECO "A45"]
[WhiteElo "1899"]
[BlackElo "1641"]
[Annotator "NA"]
[PlyCount "68"]
[EventDate "2019.02.28"]
[EventType "swiss"]
[EventCountry "IRL"]
[SourceTitle "playchess.com"]
[Source "ChessBase"]
[SourceQuality "1"]
[TimeControl "5400+30"]

1. d4 {[%emt 0:00:00]} Nf6 {[%emt 0:00:00]} 2. Bf4 {[%emt 0:00:00]} c5 {[%emt 0:00:00]} 3. d5 {[%emt 0:00:47]} b5 {[%emt 0:00:11]} 4. Nf3 {[%emt 0:05:42]} Bb7 {[%emt 0:05:26]} 5. d6 {[%emt 0:08:41]} exd6 {[%emt 0:05:09]} 6. Bxd6 {[%emt 0:01:24]} Bxd6 {[%emt 0:05:44]} 7. Qxd6 {[%emt 0:01:38]} Qe7 {[%emt 0:01:53]} 8. Qxe7+ {[%emt 0:01:35]} Kxe7 {[%emt 0:00:05]} 9. e3 {[%emt 0:00:35]} a6 {[%emt 0:02:22]} 10. Be2 {[%emt 0:01:40]} d6 {[%emt 0:00:44]} 11. O-O {[%emt 0:01:16]} Nbd7 {[%emt 0:00:15]} 12. Nbd2 {[%emt 0:01:26]} Nb6 {[%emt 0:00:27]} 13. Rad1 {[%emt 0:08:21]} Na4 {[%emt 0:02:05]} 14. Rb1 {[%emt 0:05:02]} Rhe8 {[%emt 0:06:22]} 15. Rfd1 {[%emt 0:02:34]} Rad8 {[%emt 0:00:34]} 16. Ne1 {[%emt 0:03:57]} Kf8 {[%emt 0:06:21]} 17. Bf3 {[%emt 0:01:32]} d5 {[%emt 0:01:52]} 18. Nb3 {[%emt 0:08:21]} Bc8 {[%emt 0:09:07]} 19. h3 {[%emt 0:13:06]} h5 {[%emt 0:00:48]} 20. Kh2 {[%emt 0:32:23]} Bf5 {[%emt 0:01:05]} 21. Na5 {[%emt 0:00:00]} g5 {[%emt 0:06:36]} 22. g3 {[%emt 0:00:00]} Kg7 {[%emt 0:00:44]} 23. Nb3 {[%emt 0:01:30]} Kg6 {[%emt 0:06:49]} 24. Nc1 {[%emt 0:00:00]} Ne4 {[%emt 0:11:49]} 25. Kg2 {[%emt 0:00:00]} Bxh3+ {[%emt 0:04:37]} 26. Kxh3 {[%emt 0:00:00]} Nxf2+ {[%emt 0:00:16]} 27. Kg2 {[%emt 0:00:00]} Nxd1 {[%emt 0:00:07]} 28. Bxd1 {[%emt 0:00:00]} Rxe3 {[%emt 0:00:35]} 29. Nf3 {[%emt 0:00:00]} d4 {[%emt 0:05:30]} 30. Nd3 {[%emt 0:00:00]} f6 {[%emt 0:00:33]} 31. Kf2 {[%emt 0:00:00]} Rde8 {[%emt 0:00:45]} 32. Nde1 {[%emt 0:00:00]} h4 {[%emt 0:01:37]} 33. gxh4 {[%emt 0:00:00]} g4 {[%emt 0:00:06]} 34. Nd2 {[%emt 0:00:00]} Rxe1 {[%emt 0:00:25]} 0-1

[Event "Irish International Open 2019"]
[Site "Dublin"]
[Date "2019.04.18"]
[Round "2.27"]
[White "Harrington, Eoin"]
[Black "Hafstad, Leif"]
[Result "0-1"]
[ECO "B23"]
[WhiteElo "1585"]
[BlackElo "1857"]
[Annotator "NA"]
[PlyCount "56"]
[EventDate "2019.02.28"]
[EventType "swiss"]
[EventCountry "IRL"]
[SourceTitle "playchess.com"]
[Source "ChessBase"]
[SourceQuality "1"]
[TimeControl "5400+30"]

1. e4 {[%emt 0:00:00]} c5 {[%emt 0:00:00]} 2. Nc3 {[%emt 0:00:00]} e6 {[%emt 0:00:22]} 3. f4 {[%emt 0:02:08]} Nc6 {[%emt 0:03:37]} 4. Nf3 {[%emt 0:00:08]} d5 {[%emt 0:01:37]} 5. Bb5 {[%emt 0:00:18]} Nge7 {[%emt 0:06:36]} 6. Qe2 {[%emt 0:01:12]} d4 {[%emt 0:03:11]} 7. Nd1 {[%emt 0:00:44]} a6 {[%emt 0:03:02]} 8. Bxc6+ {[%emt 0:00:17]} Nxc6 {[%emt 0:01:00]} 9. d3 {[%emt 0:00:10]} b5 {[%emt 0:04:14]} 10. O-O {[%emt 0:01:24]} Be7 {[%emt 0:03:11]} 11. Nf2 {[%emt 0:01:47]} Qc7 {[%emt 0:05:23]} 12. e5 {[%emt 0:03:08]} Bb7 {[%emt 0:07:20]} 13. Ne4 {[%emt 0:03:05]} h6 {[%emt 0:10:49]} 14. Bd2 {[%emt 0:14:12]} Rd8 {[%emt 0:11:15]} 15. Qf2 {[%emt 0:06:38]} Nb4 {[%emt 0:08:14]} 16. Bxb4 {[%emt 0:01:07]} cxb4 {[%emt 0:00:09]} 17. Rae1 {[%emt 0:09:11]} Bc5 {[%emt 0:05:43]} 18. Qg3 {[%emt 0:03:43]} Bxe4 {[%emt 0:01:37]} 19. Rxe4 {[%emt 0:01:42]} O-O {[%emt 0:00:48]} 20. Nh4 {[%emt 0:04:46]} Kh7 {[%emt 0:03:43]} 21. f5 {[%emt 0:02:49]} exf5 {[%emt 0:00:47]} 22. Nxf5 {[%emt 0:03:02]} g6 {[%emt 0:03:05]} 23. Nxh6 {[%emt 0:13:57]} Qe7 {[%emt 0:14:50]} 24. Nf5 {[%emt 0:06:56]} Qe6 {[%emt 0:00:52]} 25. Qh4+ {[%emt 0:00:26]} Kg8 {[%emt 0:00:12]} 26. Nh6+ {[%emt 0:01:34]} Kg7 27. Ng4 {[%emt 0:03:05]} Rh8 {[%emt 0:00:42]} 28. Qf6+ {[%emt 0:00:41]} Qxf6 {[%emt 0:00:11]} 0-1

[Event "Irish International Open 2019"]
[Site "Dublin"]
[Date "2019.04.18"]
[Round "3.1"]
[White "Epishin, Vladimir"]
[Black "Jackson, James P"]
[Result "1/2-1/2"]
[ECO "A49"]
[WhiteElo "2568"]
[BlackElo "2388"]
[Annotator "ChessBase"]
[PlyCount "145"]
[EventDate "2019.02.28"]
[EventType "swiss"]
[EventCountry "IRL"]
[SourceTitle "playchess.com"]
[Source "ChessBase"]
[SourceQuality "1"]
[TimeControl "5400+30"]

1. d4 {[%emt 0:00:00]} Nf6 {[%emt 0:00:00]} 2. Nf3 {[%emt 0:00:00]} g6 {[%emt 0:00:00]} 3. g3 {[%emt 0:01:38]} Bg7 {[%emt 0:00:00]} 4. Bg2 {[%emt 0:00:04]} O-O {[%emt 0:00:00]} 5. O-O {[%emt 0:00:07]} d6 {[%emt 0:00:12]} 6. a4 {[%emt 0:00:38]} a5 {[%emt 0:02:51]} 7. Bf4 {[%emt 0:05:01]} h6 {[%emt 1:30:27]} 8. Re1 {[%emt 0:02:09]} Nh5 {[%emt 0:00:00]} 9. Bd2 {[%emt 0:02:46]} e5 {[%emt 0:00:00]} 10. dxe5 {[%emt 0:00:39]} dxe5 {[%emt 0:00:00]} 11. e4 {[%emt 0:00:04]} Nc6 {[%emt 0:00:00]} 12. Na3 {[%emt 0:00:11]} Be6 {[%emt 0:00:00]} 13. Qe2 {[%emt 0:00:34]} b6 {[%emt 0:00:00]} 14. Bc3 {[%emt 0:02:46]} Qe8 {[%emt 0:00:00]} 15. Nh4 {[%emt 0:20:06]} Rd8 {[%emt 0:00:00]} 16. Nb5 {[%emt 0:03:56]} Qd7 {[%emt 0:00:00]} 17. Rad1 {[%emt 0:07:28]} Qc8 {[%emt 0:00:00]} 18. Nf5 {[%emt 0:00:57]} Kh7 {[%emt 0:00:00]} 19. Nxg7 {[%emt 0:00:58]} Nxg7 {[%emt 0:00:00]} 20. Qe3 {[%emt 0:04:20]} Rxd1 {[%emt 0:00:00]} 21. Rxd1 {[%emt 0:00:18]} Rd8 {[%emt 0:00:00]} 22. Rd2 {[%emt 0:00:32]} g5 {[%emt 0:00:00]} 23. Bf1 {[%emt 0:02:04]} f6 {[%emt 0:00:00]} 24. b3 {[%emt 0:01:10]} Bd7 {[%emt 0:00:00]} 25. Bc4 {[%emt 0:02:20]} Ne6 {[%emt 0:00:00]} 26. f3 {[%emt 0:03:14]} Nc5 {[%emt 0:00:00]} 27. Kf2 {[%emt 0:00:51]} Be6 {[%emt 0:00:00]} 28. Bf1 {[%emt 0:00:53]} Rxd2+ {[%emt 0:00:00]} 29. Qxd2 {[%emt 0:00:37]} g4 {[%emt 0:00:00]} 30. Qe3 {[%emt 0:01:16]} gxf3 {[%emt 0:00:00]} 31. Qxf3 {[%emt 0:00:36]} Bg4 {[%emt 0:00:00]} 32. Qe3 {[%emt 0:00:06]} Qd7 {[%emt 0:00:00]} 33. Na3 {[%emt 0:03:20]} Nd4 {[%emt 0:00:00]} 34. Bxd4 {[%emt 0:06:57]} Qxd4 {[%emt 0:00:00]} 35. Qxd4 {[%emt 0:00:33]} exd4 {[%emt 0:00:00]} 36. Nb5 {[%emt 0:02:15]} Nxe4+ {[%emt 0:00:00]} 37. Ke1 {[%emt 0:00:00]} c5 {[%emt 0:00:21]} 38. Nc7 {[%emt 0:00:03]} Bf3 {[%emt 0:06:23]} 39. Bd3 {[%emt 0:02:59]} Kg7 {[%emt 0:00:50]} 40. Nd5 {[%emt 0:01:26]} Nxg3 {[%emt 0:03:44]} 41. Nxb6 {[%emt 0:01:20]} Ne4 {[%emt 0:00:05]} 42. Nc4 {[%emt 0:00:41]} f5 {[%emt 0:00:27]} 43. Nxa5 {[%emt 0:00:09]} Kf6 {[%emt 0:00:10]} 44. Nb7 {[%emt 0:10:36]} Ke7 {[%emt 0:02:11]} 45. a5 {[%emt 0:00:32]} Kd7 {[%emt 0:01:30]} 46. a6 {[%emt 0:07:15]} Kc6 {[%emt 0:00:39]} 47. Nd8+ {[%emt 0:02:16]} Kb6 {[%emt 0:00:25]} 48. Nf7 {[%emt 0:00:15]} h5 {[%emt 0:01:34]} 49. h4 {[%emt 0:00:07]} Bg2 {[%emt 0:00:52]} 50. Ng5 {[%emt 0:02:19]} Nd6 {[%emt 0:00:58]} 51. Ne6 {[%emt 0:02:08]} Bd5 {[%emt 0:00:25]} 52. Nf4 {[%emt 0:00:05]} Be4 {[%emt 0:00:49]} 53. Ke2 {[%emt 0:00:39]} Bxd3+ {[%emt 0:00:28]} 54. Kxd3 {[%emt 0:00:32]} Kxa6 {[%emt 0:00:05]} 55. Nxh5 {[%emt 0:00:05]} Kb5 {[%emt 0:00:16]} 56. Nf4 {[%emt 0:00:13]} Nf7 {[%emt 0:00:30]} 57. h5 {[%emt 0:00:12]} Kc6 {[%emt 0:00:31]} 58. b4 {[%emt 0:00:12]} Ne5+ {[%emt 0:00:07]} 59. Ke2 {[%emt 0:00:02]} cxb4 {[%emt 0:00:32]} 60. h6 {[%emt 0:00:36]} Nf7 {[%emt 0:00:46]} 61. h7 {[%emt 0:00:05]} Kc5 {[%emt 0:00:10]} 62. Ng6 {[%emt 0:02:00]} f4 {[%emt 0:01:45]} 63. Nxf4 {[%emt 0:00:50]} Kc4 {[%emt 0:00:10]} 64. Kd2 {[%emt 0:00:14]} Nh8 {[%emt 0:00:19]} 65. Nd3 {[%emt 0:01:10]} b3 {[%emt 0:00:07]} 66. cxb3+ {[%emt 0:00:43]} Kxb3 {[%emt 0:00:06]} 67. Ne5 {[%emt 0:00:06]} Kb4 {[%emt 0:00:07]} 68. Kd3 {[%emt 0:00:01]} Kc5 {[%emt 0:00:23]} 69. Ke4 {[%emt 0:00:06]} Kd6 {[%emt 0:00:15]} 70. Kf5 {[%emt 0:00:06]} Ke7 {[%emt 0:00:27]} 71. Kg5 {[%emt 0:00:31]} Ke6 {[%emt 0:00:53]} 72. Ng6 {[%emt 0:00:52]} Kf7 {[%emt 0:00:42]} 73. Nxh8+ {[%emt 0:00:31]} 1/2-1/2